Cogmind - Beta 17 @@@ ROGUE MODE // 2026.08.20 @ 18:09:46 Player: LandRaider Result: Destroyed by S-27 Virus with Autogun Performance ------------- Evolutions (5) 2500 Regions Visited (13) 2600 Robots Destroyed (84) 420 Value Destroyed (2545) 2545 Prototype IDs (27) 540 Alien Tech Used (0) 0 Bonus (730) 730 TOTAL SCORE: 9335 Bonus ------- High Alert Combat Kills 191 Follower Combat Kills 39 Entered Garrisons 200 Aligned with FarCom 300 Cogmind --------- Core Integrity 0/1000 Matter 300/300 Energy 100/100 System Corruption 0% Temperature Cool (0) Movement Hovering (110) Ox1 Location -5/Upper Caves Parts ------- > --- POWER (1) -------- (None) > --- PROPULSION (5) --- Improved Gyrokinetic Inverter > --- UTILITY (9) ------ Large Storage Unit Machine Analyzer Advanced Signal Interpreter > --- WEAPON (2) ------- (None) > --- INVENTORY (15) --- Medium Treads Medium Treads Medium Storage Unit Triangulator Stasis Canceller Improved Transmission Jammer Makeshift ECM Suite System Guard Heavy Ion Cannon Gauss Cannon Improved Grenade Launcher Remote Datajack Great Maul Peak State ------------ > --- POWER ------------ Light Neutrino Core > --- PROPULSION ------- Combat Airjet Combat Airjet Gyrokinetic Inverter Linear Gravjet Improved Gyrokinetic Inverter > --- UTILITY ---------- Power Amplifier Improved Cooling System Large Storage Unit Machine Analyzer Advanced Sensor Array Advanced Signal Interpreter Seismic Detector Improved Transmission Jammer System Shield > --- WEAPON ----------- Precision Rocket Launcher Powered Hammer > --- INVENTORY -------- Light Angular Momentum Engine Improved Gravmag System Medium Storage Unit Advanced Weight Redist. System Triangulator Stasis Canceller Makeshift ECM Suite Phase Shifter Improved Light Armor Plating Shield Generator System Guard Ion Cannon Gauss Cannon Improved Grenade Launcher Remote Datajack [Rating: 84] Favorites ----------- Power Deuterium Engine Engine Deuterium Engine Power Core Light Nuclear Core Propulsion Light Treads Treads Light Treads Wheel Wheel Hover Unit Combat Airjet Flight Unit Flying Fortress v7 Utility Large Storage Unit Device Heat Sink Storage Large Storage Unit Processor Machine Analyzer Hackware System Shield Protection Improved Light Armor Plating Weapon Powered Hammer Energy Gun Field Laser Energy Cannon Heavy Ion Cannon Ballistic Gun Assault Rifle Launcher Grenade Launcher Special Weapon Mining Laser Impact Weapon Powered Hammer Slashing Weapon Axe Build | -11 -10 -10 -10 -9 -8 -7 -6 -6 -6 -6 -6 -5 -5 ------- Run | Yrd Mat Min Exi Min Mat Fac Fac Gar Fac Low Low Fac Upp Slots Evolved 10 | . . . . . 4 2 2 . . . . 2 . Power . | . . . . . . . . . . . . . . Propulsion 3 | . . . . . 2 . . . . . . 1 . Utility 7 | . . . . . 2 2 2 . . . . 1 . Weapon . | . . . . . . . . . . . . . . Parts Attached 81 | 7 5 3 2 1 8 19 . . 13 . 1 17 5 Power 8 | 1 1 . . 1 1 2 . . . . . 2 . Engine 6 | 1 . . . 1 1 2 . . . . . 1 . Core 2 | . 1 . . . . . . . . . . 1 . Reactor . | . . . . . . . . . . . . . . Propulsion 19 | 2 2 1 . . 1 7 . . 3 . . 3 . Treads 6 | . 2 1 . . . 3 . . . . . . . Leg . | . . . . . . . . . . . . . . Wheel 2 | 2 . . . . . . . . . . . . . Hover 9 | . . . . . . 3 . . 3 . . 3 . Flight 2 | . . . . . 1 1 . . . . . . . Utility 41 | 2 2 . 2 . 4 8 . . 6 . 1 11 5 Device 23 | 1 1 . 1 . 1 4 . . 2 . 1 7 5 Storage 3 | 1 . . 1 . . 1 . . . . . . . Processor 10 | . . . . . 2 1 . . 3 . . 4 . Hackware 1 | . . . . . . . . . 1 . . . . Protection 4 | . 1 . . . 1 2 . . . . . . . Artifact . | . . . . . . . . . . . . . . Weapon 13 | 2 . 2 . . 2 2 . . 4 . . 1 . Energy Gun 1 | . . . . . . . . . 1 . . . . Energy Cannon 3 | . . . . . 1 1 . . 1 . . . . Ballistic Gun 2 | 2 . . . . . . . . . . . . . Ballistic Cannon . | . . . . . . . . . . . . . . Launcher 3 | . . 1 . . 1 . . . . . . 1 . Special Weapon 1 | . . 1 . . . . . . . . . . . Impact Weapon 2 | . . . . . . 1 . . 1 . . . . Slashing Weapon 1 | . . . . . . . . . 1 . . . . Piercing Weapon . | . . . . . . . . . . . . . . Special Melee Weapon . | . . . . . . . . . . . . . . Unidentified Prototypes 4 | . . . . . . 1 . . 1 . . 2 . Parts Lost 36 | . 3 4 . 1 1 4 . . 2 1 . . 20 Power 5 | . 1 . . 1 . 1 . . . . . . 2 Propulsion 8 | . 1 . . . . 1 . . 1 . . . 5 Utility 16 | . . 2 . . . 1 . . 1 1 . . 11 Weapon 7 | . 1 2 . . 1 1 . . . . . . 2 Highest Loss Streak 6 | . 1 3 . 1 1 4 . . 2 1 . . 6 To Critical Strikes . | . . . . . . . . . . . . . . Average Backups 10 | 5 7 6 4 6 8 12 15 15 14 14 14 14 12 Power 1 | . 1 1 1 1 1 1 1 1 1 2 2 1 . Propulsion 1 | 3 2 2 2 2 . 1 3 3 1 . . . 1 Utility 5 | . 1 1 . 3 4 6 7 7 7 7 7 9 6 Weapon 2 | . 3 1 . . 1 2 3 3 3 4 4 3 3 Tool/Special . | . . . . . . . . . . . . . . Unused Backups 22 | . 2 1 2 . 2 . . . 2 . 1 3 9 Power 2 | . . . . . . . . . 1 . . 1 . Propulsion 4 | . . . 2 . . . . . . . . . 2 Utility 8 | . 1 . . . 1 . . . 1 . 1 2 2 Weapon 7 | . 1 1 . . 1 . . . . . . . 4 Tool/Special 1 | . . . . . . . . . . . . . 1 Average Slot Usage (%) 80 | . 97 81 75 83 68 76 73 73 91 97 95 97 53 Engine 3 | . 11 . . . 9 6 6 6 6 6 6 . . Core 4 | . 1 14 14 12 . . . . . . . 4 . Treads 10 | . 18 28 28 28 . 7 . . . . . . . Hover 9 | . . . . . . . 20 20 24 26 26 27 13 Flight 1 | . . . . . 8 4 . . . . . . . Device 14 | . 13 10 4 14 12 16 13 13 21 17 15 25 10 Storage 8 | . 14 14 14 14 9 7 6 6 6 6 6 5 5 Processor 7 | . . . . . 7 12 13 13 12 13 13 12 11 Hackware 1 | . . . . . . . . . . 6 6 5 1 Protection 2 | . . . . . 4 6 6 6 6 6 6 1 . Energy Cannon 2 | . . . . . 8 3 . . . 6 6 5 1 Ballistic Gun 2 | . 27 7 . . . . . . . . . . . Launcher 4 | . . 5 14 14 9 4 . . . . . . . Impact Weapon 2 | . . . . . . 4 6 6 2 6 6 5 4 Peak Build Rating 84 | 8 9 9 11 11 50 58 38 38 61 61 62 84 82 Average Rating 37 | 5 7 7 8 10 44 43 38 38 49 59 58 75 44 On Entrance 33 | . 8 8 7 11 9 50 38 38 38 61 56 62 82 Avg Prop Armor Cover (%) 1 | . . . . . . . . . . . . . 1 Naked Turns . | . . . . . . . . . . . . . . Heaviest Build 53 | 14 14 14 19 19 38 50 35 35 49 46 48 49 53 Greatest Support 66 | 26 40 40 40 40 50 66 39 39 55 55 55 58 57 Greatest Overweight (x) 13 | . 1 . . . . 13 . . 1 . . . 2 Average Overweight (x) . | . . . . . . . . . . . . . 1 Largest Inventory Capacity 15 | 8 8 8 10 10 10 15 15 15 15 15 15 15 15 Average Capacity 12 | 7 8 8 8 10 10 14 15 15 15 15 15 15 15 Most Carried 15 | 8 8 8 9 9 10 15 15 15 15 14 15 15 15 Average Carried 11 | 5 7 6 5 8 8 12 15 15 14 14 14 14 12 Final Capacity 15 | 8 8 8 10 10 10 15 15 15 15 15 15 15 15 Final Carried 15 | 8 8 5 9 7 10 15 15 15 15 14 15 15 13 Class Distribution -------------------- 82% | Mutant 8% | Scout 4% | Scavenger-Mutant 3% | Ninja Dominant Class ---------------- Mutant | -10/Materials Mutant | -10/Mines Mutant | -10/Exiles Mutant | -9/Mines Mutant | -8/Materials Mutant | -7/Factory Scavenger-Mutant | -6/Factory Scavenger-Mutant | -6/Garrison Mutant | -6/Factory Mutant | -6/Lower Caves Mutant | -6/Lower Caves Scout | -5/Factory Mutant | -5/Upper Caves Resources | -11 -10 -10 -10 -9 -8 -7 -6 -6 -6 -6 -6 -5 -5 ----------- Run | Yrd Mat Min Exi Min Mat Fac Fac Gar Fac Low Low Fac Upp Matter Collected 2307 | 300 196 78 60 6 469 420 . . 373 117 18 20 250 Remotely . | . . . . . . . . . . . . . . Salvage Created 2286 | 131 273 43 . 11 403 537 . . 399 91 . . 398 Parts 116 | 13 13 5 . 2 26 29 . . 13 1 . . 14 Haulers Intercepted 4 | . . . . . 2 1 . . 1 . . . . Recyclers Shooed 2 | . 1 . . . 1 . . . . . . . . Parts Field Recycled . | . . . . . . . . . . . . . . Retrieved Matter . | . . . . . . . . . . . . . . Parts Self-Destructed 12 | . . . . . . . . . . . 2 . 10 Prevented 7 | . . . . . . . . . . . . . 7 Parts Restored . | . . . . . . . . . . . . . . Kills | -11 -10 -10 -10 -9 -8 -7 -6 -6 -6 -6 -6 -5 -5 ------- Run | Yrd Mat Min Exi Min Mat Fac Fac Gar Fac Low Low Fac Upp Combat Hostiles Destroyed 60 | . 7 4 . 3 12 17 . . 1 3 . . 13 Melee 8 | . . . . . . 1 . . 1 1 . . 5 Guns 7 | . 7 . . . . . . . . . . . . Cannons 8 | . . . . . 2 3 . . . . . . 3 AOE 28 | . . 4 . 3 10 11 . . . . . . . Classes Destroyed 12 | 2 1 1 . . 5 2 . . . 1 . . . Worker 3 | . . . . . 1 1 . . 1 . . . . Builder 3 | . . . . . 1 1 . . 1 . . . . Tunneler 3 | 3 . . . . . . . . . . . . . Hauler 4 | . . . . . 2 1 . . 1 . . . . Recycler 4 | 1 . . . . . 1 . . 2 . . . . Mechanic 2 | . . . . . . 2 . . . . . . . Watcher 5 | . . . . . 4 1 . . . . . . . Swarmer 29 | . . 3 . 3 4 5 . . 1 3 . . 10 Grunt 23 | . 7 1 . . 6 6 . . . . . . 3 Sentry 4 | . . . . . 2 2 . . . . . . . Programmer 4 | . . . . . . 4 . . . . . . . Tinkerer 1 | . . . . . . . . . . 1 . . . Best Kill Streak 13 | 4 3 3 . 3 13 6 . . 1 3 . . 5 Combat Bots Only 10 | . 3 3 . 3 10 5 . . 1 3 . . 5 Max Kills in Single Turn 7 | 1 1 3 . 2 7 3 . . 1 1 . . 1 Gunslinging . | . . . . . . . . . . . . . . Exploded 5 | . . 3 . 2 5 3 . . . . . . . Melee 1 | . . . . . . 1 . . 1 1 . . 1 Uniques/NPCs Destroyed . | . . . . . . . . . . . . . . Combat | -11 -10 -10 -10 -9 -8 -7 -6 -6 -6 -6 -6 -5 -5 -------- Run | Yrd Mat Min Exi Min Mat Fac Fac Gar Fac Low Low Fac Upp Hostile Shots Fired 566 | . 64 23 . 3 28 150 . . 19 26 . 3 250 Missed 184 | . 15 5 . . 10 57 . . 12 8 . 3 74 Hits 382 | . 49 18 . 3 18 93 . . 7 18 . . 176 Projectile 382 | . 49 18 . 3 18 93 . . 7 18 . . 176 Critical Strikes 11 | . 2 2 . . 1 3 . . . 1 . . 2 Part Disruptions 3 | . . . . . 1 2 . . . . . . . Damage Taken 6170 | . 608 246 . 35 336 1533 . . 376 283 . . 2753 Core 1537 | . 133 21 . 14 3 177 . . 90 84 . . 1015 Absorbed by Shields 65 | . . . . . . . . . 16 . . . 49 Core Remaining (%) 76 | 100 . . . 32 99 74 . . . . 79 . . Volleys Fired 182 | 8 36 6 . 3 56 63 . . 3 . . 1 6 Largest 2 | 2 2 1 . 1 1 2 . . 1 . . 1 1 Hottest 135 | 40 40 100 . 30 60 135 . . 65 . . 65 65 Shots Fired 228 | 16 72 6 . 3 56 65 . . 3 . . 1 6 Gun 91 | 16 72 1 . . . . . . 2 . . . . Cannon 55 | . . . . . 20 27 . . 1 . . 1 6 Launcher 81 | . . 4 . 3 36 38 . . . . . . . Special 1 | . . 1 . . . . . . . . . . . Kinetic 89 | 16 72 1 . . . . . . . . . . . Thermal 58 | . . 1 . . 20 27 . . 3 . . 1 6 Explosive 81 | . . 4 . 3 36 38 . . . . . . . Electromagnetic . | . . . . . . . . . . . . . . Robot Hit Streak 13 | 6 13 3 . 1 5 11 . . 1 . . . 4 Robot Miss Streak 4 | 1 3 1 . 1 2 4 . . 1 . . . 1 Penetration Max . | . . . . . . . . . . . . . . Secondary Targets 2 | . 2 . . . . . . . . . . . . Max Gunslinging Chain 1 | . 1 . . . . . . . . . . . . Shots Hit Robots 168 | 11 52 4 . 1 15 46 . . 10 4 . 2 23 Core Hits 126 | 6 18 8 . 6 30 45 . . 4 2 . . 7 Critical Kills . | . . . . . . . . . . . . . . Critical Parts Destroyed 11 | . . . . . . 4 . . 1 2 . . 4 Critical Strikes 11 | . . . . . . 4 . . 1 2 . . 4 Smash 11 | . . . . . . 4 . . 1 2 . . 4 Melee Attacks 219 | . . . . . . 88 20 . 36 5 . 32 38 Impact 192 | . . . . . . 88 20 . 9 5 . 32 38 Slashing 27 | . . . . . . . . . 27 . . . . Piercing . | . . . . . . . . . . . . . . Sneak Attacks 8 | . . . . . . 1 . . 6 1 . . . Combat Hostiles . | . . . . . . . . . . . . . . Follow-up Attacks . | . . . . . . . . . . . . . . Damage Inflicted 7957 | 116 581 235 . 118 2228 2898 . . 595 222 . 79 885 Guns 729 | 116 581 15 . . . . . . 17 . . . . Cannons 756 | . . . . . 305 356 . . . . . . 95 Explosions 4161 | . . 220 . 118 1923 1900 . . . . . . . Melee 2311 | . . . . . . 642 . . 578 222 . 79 790 Ramming . | . . . . . . . . . . . . . . Kinetic 712 | 116 581 15 . . . . . . . . . . . Thermal 2312 | . . . . . 1119 1081 . . 17 . . . 95 Explosive 2620 | . . 220 . 118 1107 1175 . . . . . . . Electromagnetic 2 | . . . . . 2 . . . . . . . . Impact 1961 | . . . . . . 642 . . 228 222 . 79 790 Slashing 350 | . . . . . . . . . 350 . . . . Piercing . | . . . . . . . . . . . . . . Highest Corruption 8 | . . . . . . 7 . . 8 8 8 . . Average Corruption 6 | . . . . . . 4 . . 8 8 8 . . Corruption Purged . | . . . . . . . . . . . . . . Corruption Blocked . | . . . . . . . . . . . . . . Effects 50 | . . . . . . 20 . . 12 12 6 . . Message Errors 10 | . . . . . . 3 . . 1 4 2 . . Matter Fused 13 | . . . . . . 4 . . 5 3 1 . . Heat Flow Errors 10 | . . . . . . 6 . . 1 1 2 . . Energy Discharges 3 | . . . . . . 2 . . . 1 . . . Parts Rejected 1 | . . . . . . 1 . . . . . . . Data Loss (minor) 9 | . . . . . . 1 . . 4 3 1 . . Data Loss (major) 3 | . . . . . . 2 . . 1 . . . . Misfires 1 | . . . . . . 1 . . . . . . . Overload Shots . | . . . . . . . . . . . . . . Overflow Damage 851 | . . . . . 127 335 . . 86 107 . 1 195 Projectiles 6 | . . . . . 2 4 . . . . . . . Explosions 269 | . . . . . 125 144 . . . . . . . Melee 576 | . . . . . . 187 . . 86 107 . 1 195 Knockbacks 4 | . . . . . . 2 . . 1 . . . 1 Impact 4 | . . . . . . 2 . . 1 . . . 1 Kinetic . | . . . . . . . . . . . . . . Secondary . | . . . . . . . . . . . . . . Self-Inflicted Damage 528 | . . 13 . 17 115 383 . . . . . . . Shots 15 | . . 1 . 1 5 8 . . . . . . . Rammed . | . . . . . . . . . . . . . . Targets Rammed . | . . . . . . . . . . . . . . Kicked . | . . . . . . . . . . . . . . Crushed . | . . . . . . . . . . . . . . Highest Temperature 242 | . 32 64 . . 83 242 . . 207 190 195 . 64 Average Temperature 47 | . 13 18 . . 26 64 . . 77 99 103 . 33 Received Heat Transfer 1221 | . 375 141 . . 81 210 . . . . . . 414 Siege Activations . | . . . . . . . . . . . . . . Martial Activations . | . . . . . . . . . . . . . . Shielding Activations . | . . . . . . . . . . . . . . Robots Disrupted . | . . . . . . . . . . . . . . Combat Hostiles . | . . . . . . . . . . . . . . Robots Corrupted 11 | . . . . . . 2 . . 2 2 . . 5 Combat Hostiles 9 | . . . . . . 2 . . . 2 . . 5 Parts Fried 13 | . . . . . . . . . 4 2 . . 7 Impact Corruptions 31 | . . . . . . 12 . . 4 4 . 1 10 Robots Melted . | . . . . . . . . . . . . . . Combat Hostiles . | . . . . . . . . . . . . . . Parts Melted 1 | . . . . . . 1 . . . . . . . Heat Transferred 2171 | . . . . . 931 1055 . . 37 . . . 148 Parts Sabotaged . | . . . . . . . . . . . . . . Parts Stolen . | . . . . . . . . . . . . . . Parts Stripped . | . . . . . . . . . . . . . . Power Chain Reactions . | . . . . . . . . . . . . . . Alert | -11 -10 -10 -10 -9 -8 -7 -6 -6 -6 -6 -6 -5 -5 ------- Run | Yrd Mat Min Exi Min Mat Fac Fac Gar Fac Low Low Fac Upp Maximum Alert Level 2 | . . . . . 2 2 1 . . . . . . Low Security (%) 66 | 100 100 100 . 100 71 . . 100 100 . . 100 . Level 1 7 | . . . . . 2 14 100 . . . . . . Level 2 26 | . . . . . 26 85 . . . . . . . Level 3 . | . . . . . . . . . . . . . . Level 4 . | . . . . . . . . . . . . . . Level 5 . | . . . . . . . . . . . . . . High Security . | . . . . . . . . . . . . . . Max Security . | . . . . . . . . . . . . . . Peak Influence 650 | 5 75 66 . 69 538 650 285 175 91 . . 32 . Initial 285 | . 3 9 . . 17 240 285 175 91 . . . . Average 176 | 1 29 5 . 6 172 500 260 175 39 . . 6 . Influence Increases 3116 | 20 205 179 . 87 714 924 26 . 162 145 . 164 490 Destroy 0b10 Robot/C 1220 | . 140 100 . 60 240 340 . . 20 60 . . 260 Destroy 0b10 Robot/NC 120 | 20 . . . . 40 35 . . 25 . . . . Destroy Leader 268 | . 30 30 . 10 62 104 . . 2 10 . . 20 Allied During Kill 2 | . . 2 . . . . . . . . . . . Trap Triggered on 0b10 10 | . . 10 . . . . . . . . . . . Successful Hack 126 | . 5 . . . 5 8 14 . 46 . . 48 . Select Force Hacks 120 | . 30 . . . . 30 . . . . . 60 . Disable Machine 300 | . . . . . 120 180 . . . . . . . Destroy Structure 575 | . . 22 . 17 232 212 12 . 24 . . 56 . Partial Spotted 30 | . . . . . 15 15 . . . . . . . Lose Combat Pursuer 345 | . . 15 . . . . . . 45 75 . . 210 Influence Decreases 3071 | 15 186 137 66 42 229 870 359 76 318 158 6 154 455 Entered New Map 874 | . 2 15 66 . 28 290 299 76 84 8 2 . 4 Time Decay 1876 | 15 164 91 . 32 191 530 60 . 214 150 4 154 271 Lost Part 291 | . 20 11 . 10 10 40 . . 20 . . . 180 Lost Ally 30 | . . 20 . . . 10 . . . . . . . Squads Dispatched 23 | . 2 . . . 1 10 . . 4 . . 6 . Investigation 9 | . 1 . . . . 3 . . 2 . . 3 . Extermination 7 | . . . . . . 3 . . 1 . . 3 . Reinforcement 4 | . 1 . . . 1 1 . . 1 . . . . Assault . | . . . . . . . . . . . . . . Garrison 3 | . . . . . . 3 . . . . . . . Intercept . | . . . . . . . . . . . . . . Searches Triggered . | . . . . . . . . . . . . . . Construction Impeded 2 | . . . . . 1 . . . 1 . . . . Haulers Reinforced . | . . . . . . . . . . . . . . Active Scanning Responses . | . . . . . . . . . . . . . . Cargo Convoy Interrupts . | . . . . . . . . . . . . . . Stealth | -11 -10 -10 -10 -9 -8 -7 -6 -6 -6 -6 -6 -5 -5 --------- Run | Yrd Mat Min Exi Min Mat Fac Fac Gar Fac Low Low Fac Upp Distress Signals 4 | . 2 . . . 2 . . . . . . . . Communications Jammed . | . . . . . . . . . . . . . . Distress Signals . | . . . . . . . . . . . . . . Times Spotted 135 | . 17 6 . 2 17 24 . 2 4 7 2 8 46 Peak Tracking Total 10 | . 5 3 . 2 7 6 . 2 3 5 2 2 10 Tactical Retreats 18 | . . 1 . . . 3 . . 2 2 . . 10 ECM-based Alert Blocks 21 | . . . . . . 5 . . . . . . 16 Traps | -11 -10 -10 -10 -9 -8 -7 -6 -6 -6 -6 -6 -5 -5 ------- Run | Yrd Mat Min Exi Min Mat Fac Fac Gar Fac Low Low Fac Upp Traps Triggered 4 | . . . . . . 2 . . 2 . . . . Indirectly . | . . . . . . . . . . . . . . Trap Hack Attempts . | . . . . . . . . . . . . . . Triggered . | . . . . . . . . . . . . . . Disarmed . | . . . . . . . . . . . . . . Reprogrammed . | . . . . . . . . . . . . . . Reused 1 | . . 1 . . . . . . . . . . . Traps Extracted . | . . . . . . . . . . . . . . Installed 4 | . . 4 . . . . . . . . . . . Triggered 1 | . . 1 . . . . . . . . . . . Most Traps Carried 1 | . . 1 . . . . . . . . . . . Machines | -11 -10 -10 -10 -9 -8 -7 -6 -6 -6 -6 -6 -5 -5 ---------- Run | Yrd Mat Min Exi Min Mat Fac Fac Gar Fac Low Low Fac Upp Machines Disabled 20 | . . . . . 8 12 . . . . . . . Max in Single Turn 4 | . . . . . 4 4 . . . . . . . Garrison Access 1 | . . . . . . 1 . . . . . . . Machines Repaired . | . . . . . . . . . . . . . . Machines Dismantled . | . . . . . . . . . . . . . . Machines Sabotaged . | . . . . . . . . . . . . . . Overloaded Fab Kills . | . . . . . . . . . . . . . . Hacking | -11 -10 -10 -10 -9 -8 -7 -6 -6 -6 -6 -6 -5 -5 --------- Run | Yrd Mat Min Exi Min Mat Fac Fac Gar Fac Low Low Fac Upp Machines Accessed 40 | . 3 . 4 . 2 12 1 1 5 . . 11 1 Terminals 15 | . 2 . . . 2 3 . 1 3 . . 4 . Fabricators 7 | . . . . . . 4 . . . . . 3 . Repair Stations 1 | . . . . . . . . . . . . 1 . Recycling Units 5 | . 1 . . . . 2 . . . . . 2 . Scanalyzers 3 | . . . . . . 1 . . 1 . . 1 . Garrison Access 4 | . . . . . . 2 1 . 1 . . . . Total Hacks 87 | . 6 . 27 . 4 19 1 1 8 . . 20 1 Successful 53 | . 2 . 27 . 2 5 1 . 4 . . 11 1 Failed 32 | . 4 . . . 2 13 . 1 4 . . 8 . Catastrophic 3 | . . . . . . 3 . . . . . . . Database Lockouts 2 | . . . . . . 1 . . . . . 1 . Manual 29 | . 6 . 1 . 3 7 . . 3 . . 9 . Terminals 31 | . 5 . . . 4 6 . 1 5 . . 10 . Fabricators 8 | . . . . . . 5 . . . . . 3 . Repair Stations 2 | . . . . . . . . . . . . 2 . Recycling Units 6 | . 1 . . . . 3 . . . . . 2 . Scanalyzers 7 | . . . . . . 2 . . 2 . . 3 . Garrison Access 5 | . . . . . . 3 1 . 1 . . . . Terminal Hacks 32 | . . . 27 . . . . . 2 . . 2 1 Record 27 | . . . 26 . . . . . . . . 1 . Open Door 2 | . . . . . . . . . . . . 1 1 Open DSF 1 | . . . . . . . . . 1 . . . . Branch Access Points 1 | . . . . . . . . . 1 . . . . Proto ID Catalog 1 | . . . 1 . . . . . . . . . . Fabricator Hacks 3 | . . . . . . 1 . . . . . 2 . Network Status 1 | . . . . . . . . . . . . 1 . Build 2 | . . . . . . 1 . . . . . 1 . Repair Station Hacks . | . . . . . . . . . . . . . . Recycling Unit Hacks . | . . . . . . . . . . . . . . Scanalyzer 4 | . . . . . . 1 . . 1 . . 2 . Retrieve Study 4 | . . . . . . 1 . . 1 . . 2 . Garrison Access Hacks 2 | . . . . . . 1 1 . . . . . . Unlock Access 1 | . . . . . . . 1 . . . . . . Seal Access 1 | . . . . . . 1 . . . . . . . Unauthorized Hacks 12 | . 2 . . . 2 2 . . 1 . . 5 . Terminals 7 | . 1 . . . 2 1 . . 1 . . 2 . Assimilate 1 | . . . . . . 1 . . . . . . . Botnet 6 | . 1 . . . 2 . . . 1 . . 2 . Fabricators . | . . . . . . . . . . . . . . Repair Stations 1 | . . . . . . . . . . . . 1 . Patch 1 | . . . . . . . . . . . . 1 . Recycling Units 4 | . 1 . . . . 1 . . . . . 2 . Tunnel 4 | . 1 . . . . 1 . . . . . 2 . Scanalyzers . | . . . . . . . . . . . . . . Garrison Access . | . . . . . . . . . . . . . . Data Cores Recovered . | . . . . . . . . . . . . . . Used . | . . . . . . . . . . . . . . Hacking Detections 20 | . 1 . . . . 9 1 1 3 . . 5 . Full Trace Events 3 | . . . . . . 2 . . 1 . . . . Feedback Events . | . . . . . . . . . . . . . . Feedback Blocked . | . . . . . . . . . . . . . . Robot Schematics Acquired . | . . . . . . . . . . . . . . Robots Built . | . . . . . . . . . . . . . . Authchips . | . . . . . . . . . . . . . . Time . | . . . . . . . . . . . . . . Total Robot Build Rating . | . . . . . . . . . . . . . . Part Schematics Acquired . | . . . . . . . . . . . . . . Parts Built 4 | . . . . . . 2 . . . . . 2 . Authchips . | . . . . . . . . . . . . . . Time 159 | . . . . . . 117 . . . . . 42 . Total Part Build Rating 30 | . . . . . . 14 . . . . . 16 . Part Studies Acquired 4 | . . . . . . 1 . . 1 . . 2 . Parts Repaired . | . . . . . . . . . . . . . . Time . | . . . . . . . . . . . . . . Parts Recycled . | . . . . . . . . . . . . . . Recycled Matter . | . . . . . . . . . . . . . . Retrieved Matter . | . . . . . . . . . . . . . . Retrieved Components . | . . . . . . . . . . . . . . Parts Scanalyzed . | . . . . . . . . . . . . . . Part Schematics Acquired . | . . . . . . . . . . . . . . Parts Damaged . | . . . . . . . . . . . . . . Bothacking | -11 -10 -10 -10 -9 -8 -7 -6 -6 -6 -6 -6 -5 -5 ------------ Run | Yrd Mat Min Exi Min Mat Fac Fac Gar Fac Low Low Fac Upp Used RIF Installer . | . . . . . . . . . . . . . . Robots Hacked . | . . . . . . . . . . . . . . Non-combat . | . . . . . . . . . . . . . . Combat . | . . . . . . . . . . . . . . Robot Hacks Applied . | . . . . . . . . . . . . . . Relay Couplers Released . | . . . . . . . . . . . . . . Fabnet Peak Effective % . | . . . . . . . . . . . . . . Robots Rewired . | . . . . . . . . . . . . . . Allies Hacked . | . . . . . . . . . . . . . . Hacks Repelled . | . . . . . . . . . . . . . . Allies | -11 -10 -10 -10 -9 -8 -7 -6 -6 -6 -6 -6 -5 -5 -------- Run | Yrd Mat Min Exi Min Mat Fac Fac Gar Fac Low Low Fac Upp Total Allies 4 | . . 3 . . . 1 . . . . . . . Largest Group 3 | . . 3 . . . 1 . . . . . . . Highest-Rated Group 40 | . . 40 . . . 10 . . . . . . . Highest-Rated Ally 16 | . . 16 . . . 10 . . . . . . . Total Orders . | . . . . . . . . . . . . . . Ally Attacks 8 | . . 8 . . . . . . . . . . . Total Damage 48 | . . 48 . . . . . . . . . . . Kills 2 | . . 2 . . . . . . . . . . . Allies Corrupted . | . . . . . . . . . . . . . . Allies Melted . | . . . . . . . . . . . . . . Intel | -11 -10 -10 -10 -9 -8 -7 -6 -6 -6 -6 -6 -5 -5 ------- Run | Yrd Mat Min Exi Min Mat Fac Fac Gar Fac Low Low Fac Upp Active Infowar (turns) 4902 | 9 416 453 . . 354 1492 139 37 371 442 126 899 164 Sensors 300 | . . . . . . . . . . . . 231 69 Terrain 492 | . . . . . . . . . . . . 492 . Structural 399 | . 162 237 . . . . . . . . . . . Seismic 3168 | 9 254 216 . . 176 691 . . 215 442 126 899 140 T.N.C. 304 | . . . . . 304 . . . . . . . . Machine Analysis 2082 | . . . . . . 974 139 37 143 . . 625 164 Triangulation 3 | . . . . . . . . . . . . . 3 Jamming 27 | . . . . . . . . . . . . 27 . ECM 608 | . . . . . . 556 . . 17 . . . 35 Robot Analysis Total . | . . . . . . . . . . . . . . Derelict Logs Recovered 4 | . . 1 . . . . . . . 1 1 . 1 Drone Launches . | . . . . . . . . . . . . . . Drone Recoveries . | . . . . . . . . . . . . . . Exploration | -11 -10 -10 -10 -9 -8 -7 -6 -6 -6 -6 -6 -5 -5 ------------- Run | Yrd Mat Min Exi Min Mat Fac Fac Gar Fac Low Low Fac Upp Turns Passed 7553 | 97 438 574 863 585 411 1494 139 37 471 443 126 901 974 Spaces Moved 6623 | 65 229 309 536 347 439 1251 151 68 526 700 195 1075 732 Core 5 | 3 . . . . . 2 . . . . . . . Treads 1546 | . 139 309 536 347 . 215 . . . . . . . Legs . | . . . . . . . . . . . . . . Wheels 152 | 62 90 . . . . . . . . . . . . Hover 3466 | . . . . . . 19 151 68 526 700 195 1075 732 Flight 1454 | . . . . . 439 1015 . . . . . . . Fastest Speed 50 | 50 90 160 160 160 50 50 55 55 50 61 61 53 53 Average Speed 86 | 86 132 160 160 160 50 70 55 55 58 61 61 57 108 Slowest Speed 700 | 90 160 160 160 160 50 700 55 55 111 61 61 61 150 Overloaded Moves . | . . . . . . . . . . . . . . Propulsion Burnouts . | . . . . . . . . . . . . . . Robots Hopped . | . . . . . . . . . . . . . . Potential Cave-ins 12 | . . . . . 5 7 . . . . . . . Cave-ins Triggered 1 | . . . . . . . . . 1 . . . . Exploration Rate (%) 42 | 4 50 63 93 59 50 32 2 16 18 85 23 30 71 Regions Visited 13 Branch Regions 6 Pre-discovered Areas 5 | . 1 . . . . 1 . . . . . 2 1 Known Exits Taken 8 | . . . 1 . 1 1 1 . 1 1 1 1 . Unknown Exits Taken 4 | 1 1 1 . 1 . . . . . . . . . Scrap Searched 8 | . . 1 . 1 . . . . . 2 2 . 2 Spaces Dug 106 | . . . . . . 40 13 . 25 . . 28 . Terrain Destroyed 762 | . . 24 . 17 296 358 13 . 25 . . 28 1 Melee 106 | . . . . . . 40 13 . 25 . . 28 . Projectile 5 | . . 1 . . 2 1 . . . . . . 1 AOE 651 | . . 23 . 17 294 317 . . . . . . . Terrain Rammed . | . . . . . . . . . . . . . . Walls Destroyed . | . . . . . . . . . . . . . . Machines Disabled . | . . . . . . . . . . . . . . Actions | -11 -10 -10 -10 -9 -8 -7 -6 -6 -6 -6 -6 -5 -5 --------- Run | Yrd Mat Min Exi Min Mat Fac Fac Gar Fac Low Low Fac Upp Total 7817 | 87 299 383 542 374 573 1646 171 67 624 707 201 1303 840 Wait 541 | . 19 47 . 23 53 178 . . 23 2 3 147 46 Move 6611 | 64 228 308 535 346 438 1250 151 67 525 699 194 1074 732 Hop . | . . . . . . . . . . . . . . Pick Up 65 | 8 4 5 3 . 12 14 . . 9 . 2 4 4 Fast Attach 50 | 7 4 . . . 3 7 . . 10 . 1 16 2 Attach 31 | . 1 4 1 1 2 10 . . 4 . . 2 6 Detach 8 | . . 1 . . . 3 . . 1 . . 2 1 Swap 27 | . 1 2 1 . 3 10 . . 1 . . 5 4 Drop 64 | . 6 6 2 1 6 8 . . 12 1 1 20 1 Fire 182 | 8 36 6 . 3 56 63 . . 3 . . 1 6 Melee 219 | . . . . . . 88 20 . 36 5 . 32 38 Ram . | . . . . . . . . . . . . . . Kick . | . . . . . . . . . . . . . . Crush . | . . . . . . . . . . . . . . Escape Stasis 15 | . . . . . . 15 . . . . . . . Rewire . | . . . . . . . . . . . . . . Trap 4 | . . 4 . . . . . . . . . . . Miscellaneous . | . . . . . . . . . . . . . . Route ------- -11/Scrapyard -10/Materials (discovered 2 exits: [*Min x2]) -10/Mines (discovered 2 exits: [*Mat] / *Exi) -10/Exiles (discovered 2 exits: *Min x2) -9/Mines -8/Materials -7/Factory -6/Factory -6/Garrison -6/Factory (discovered 2 exits: *Low x2) -6/Lower Caves -6/Lower Caves -5/Factory (discovered 3 exits: *Fac / *Upp / *Ext) -5/Upper Caves History --------- Turn | Location | Event 18 | -11/Scrapyard | Discovered new exit (range 15) 98 | -11/Scrapyard | Entered Materials 328 | -10/Materials | Build established: Mutant 337 | -10/Materials | Discovered new exit (range 6) 390 | -10/Materials | Discovered new exit (range 15) 479 | -10/Materials | Core integrity fell below 50% 536 | -10/Materials | Entered Mines 537 | -10/Mines | Assembled infested the area 541 | -10/Mines | Assisted by bots powering up and referring to "LRC-V3" 592 | -10/Mines | Met 8R-AWN 632 | -10/Mines | Lost 3 allies 656 | -10/Mines | Found a hidden stash of uninstalled traps 910 | -10/Mines | Lost 3 parts (1u2w) 1001 | -10/Mines | Discovered new exit (range 12) 1055 | -10/Mines | Discovered new exit (range 5) 1110 | -10/Mines | Entered Exiles 1111 | -10/Exiles | Identified exit to Mines 1158 | -10/Exiles | Welcomed by 8R-AWN 1187 | -10/Exiles | Met EX-HEX 1251 | -10/Exiles | Met EX-DEC 1379 | -10/Exiles | Visited The Gauntlet 1595 | -10/Exiles | Met EX-BIN 1626 | -10/Exiles | Aligned with FarCom system 1627 | -10/Exiles | Given EX-Vault access code 1707 | -10/Exiles | Opened EX-Vault 1721 | -10/Exiles | Found Flying Fortress v7 1753 | -10/Exiles | Warned to stay clear of 0b10 Research branches 1973 | -10/Exiles | Left Exiles lab with Flying Fortress v7 1973 | -10/Exiles | Entered Mines 1983 | -9/Mines | Discovered new exit (range 9) 2558 | -9/Mines | Entered Materials 2558 | -8/Materials | Evolved 4 slots: Propulsion x2, Utility x2 2888 | -8/Materials | Destroyed 10 combat bots 2935 | -8/Materials | Discovered new exit (range 7) 2954 | -8/Materials | Identified exit to Factory 2969 | -8/Materials | Entered Factory 2969 | -7/Factory | Evolved 2 slots: Utility x2 3441 | -7/Factory | Fabricated Imp. Gyrokinetic Inverter (x2) 3814 | -7/Factory | Central database locked down 3926 | -7/Factory | Garrison activated, responded to threat 3989 | -7/Factory | Lost 4 parts (1p1n1u1w) 4348 | -7/Factory | Discovered new exit (range 3) 4351 | -7/Factory | Identified exit to Factory 4463 | -7/Factory | Entered another Factory area 4463 | -6/Factory | Evolved 2 slots: Utility x2 4602 | -6/Factory | Identified exit to Garrison 4602 | -6/Factory | Entered Garrison 4636 | -6/Garrison | Triggered checkpoint 4637 | -6/Garrison | Discovered new exit (range 5) 4639 | -6/Garrison | Identified exit to Factory 4639 | -6/Garrison | Entered Factory 4752 | -6/Factory | Build established: Scavenger-Mutant 4782 | -6/Factory | Crushed by falling debris 4794 | -6/Factory | Found Prototype Processor 4794 | -6/Factory | Identified Exp. Targeting Computer 5005 | -6/Factory | Discovered new exit (range 5) 5009 | -6/Factory | Identified exit to Lower Caves 5092 | -6/Factory | Build established: Mutant 5110 | -6/Factory | Entered Lower Caves 5148 | -6/Lower Caves | Encountered a Warlord checkpoint 5495 | -6/Lower Caves | Discovered new exit (range 6) 5499 | -6/Lower Caves | Identified exit to Lower Caves 5521 | -6/Lower Caves | Learned Factory interactive machine intel 5553 | -6/Lower Caves | Entered another Lower Caves area 5560 | -6/Lower Caves | Learned Factory terminal intel 5588 | -6/Lower Caves | Discovered new exit (range 8) 5591 | -6/Lower Caves | Identified exit to Factory 5679 | -6/Lower Caves | Entered Factory 5679 | -5/Factory | Evolved 2 slots: Propulsion x1, Utility x1 5680 | -5/Factory | Loaded intel: 56 interactive machine locations 5681 | -5/Factory | Loaded intel: 28 terminal locations 5784 | -5/Factory | Discovered new exit (range 4) 5786 | -5/Factory | Identified exit to Factory 5829 | -5/Factory | Discovered new exit (range 19) 5842 | -5/Factory | Identified exit to Upper Caves 5865 | -5/Factory | Discovered new exit (range 14) 5872 | -5/Factory | Central database locked down 5891 | -5/Factory | Identified exit to Extension 6033 | -5/Factory | Build established: Scout 6163 | -5/Factory | Fabricated Linear Accelerator (x2) 6580 | -5/Factory | Entered Upper Caves 6585 | -5/Upper Caves | Attracted the attention of an 0b10 checkpoint 6601 | -5/Upper Caves | Encountered a Warlord checkpoint 6770 | -5/Upper Caves | Lost 6 parts (1p2n3u) 6773 | -5/Upper Caves | Spotted B-75 Beast 6901 | -5/Upper Caves | Lost 5 parts (1p4u) 6978 | -5/Upper Caves | Build established: Mutant 7004 | -5/Upper Caves | Lost 3 parts (1n2u) 7068 | -5/Upper Caves | Core integrity fell below 50% 7535 | -5/Upper Caves | Attracted the attention of an 0b10 outpost 7539 | -5/Upper Caves | Core integrity fell below 20% 7554 | -5/Upper Caves | Destroyed by S-27 Virus with Autogun Last Messages --------------- 07177_ Connecting with WAR.Sys... >>Open Door Sealed Heavy Doors opened. 07180_ Acquired Adv. Reaction Control System. 07378_ Adv. Reaction Control System destroyed. 07382_ Acquired 6 matter. 07400_ 6P-YX8(S) destroyed. 07402_ Acquired 9 matter. 07433_ Acquired derelict log, extracted data. World map updated: -6/Factory. 07457_ Critical hit (Burn: +37). 07473_ Adv. Reaction Control System destroyed. 07474_ Searching scrap... 07474_ Found Greatsword. 07474_ Found Kinecellerator. 07474_ Found 70 Matter. 07475_ Gyrokinetic Inverter destroyed. 07517_ Powered Hammer destroyed. 07535_ Y-72 Warden: "DETECTED UNIDENTIFIED DERELICT." 07539_ Y-72 Warden: "REQUESTING BACKUP." Map ----- +----------------------------------------------------+ | ???????????????????????????????????????????## | | ????????????????????????????????????????????## ## | | ?????????????????????????????????????????????# ##? | | ?????????????????????????????????????????????# #?? | | ?????????????????????????????????? ??????##### #?? | | ????????????????????????????###### ??????# #?? | | ????????????????????????????? ?????# ####?? | | ?????????????????????????????## ?????# #????? | | ?????????????????????????????# #????# #????? | | ?????????????????????????????? ?????# #????# | | ????????????????????? ???????# ###### ##???# | | ?????????????????????# ???????# ##??# | | ?????????????????????# ???????# #?## | | ?????????????????????# ???????# ## ##?# | | ?????????????????????# ######## ### ##### | | ?????????????????????# ### ### ## | | ?????????????????????# ##??##s ### #? | | ??????????????????????# #### ###### #? | | ???????????????????????# s #????# ## | | ?????????????#????????## ##????# | | ?????????????# ?????## s #?????# ## | | ????????????## #### ## #????##! ## | | ????????????# ## ##????# % | | ????????????# ##?????# | | ???????????????# #??????# | | ???????????????# @ ## #?????# | | ???????????????# ##### ##### #????# # | | ???????????????# ??????####???# ##???# ## | | ???????????????? ???????????????## ##????#######? | | ?????????????????????????????????####????????????? | | ?????????????????????????????????????????????????? | | ?????????????????????????????????????????????????? | | ?????????????????????????????????????????????????? | | ?????????????????????????????????????????????????? | | ?????????????????????????????????????????????????? | | ?????????????????????????????????????????????????? | | ?????????????????????????????????????????????????? | | ?????????????????????????????????????????????????? | | ?????????????????????????????????????????????????? | | ?????????????????????????????????????????????????? | | ?????????????????????????????????????????????????? | | ?????????????????????????????????????????????????? | | ?????????????????????????????????????????????????? | | ?????????????????????????????????????????????????? | | ?????????????????????????????????????????????????? | | ?????????????????????????????????????????????????? | | ?????????????????????????????????????????????????? | | ?????????????????????????????????????????????????? | | ?????????????????????????????????????????????????? | | ?????????????????????????????????????????????????? | +----------------------------------------------------+ Best States ------------- Heat Dissipation 67 Energy Generation 21 Energy Capacity 275 Matter Stores 300 Matter Capacity 300 Sight Range 16 Robot Scan Range 16 Terrain Scan Range 20 Terrain Scan Density 210 ECM Strength 2 Jamming Range 14 Power Amplification 20 Additional Mass Support 9 Armor Coverage 450 Propulsion Shielding 33 Phase Shifting 5 Evasion (%) 62 Core Analysis 6 Recoil Reduction 3 Defensive Hacking 10 Item Schematics ----------------- None Robot Schematics ------------------ None Fabricated ------------ Imp. Gyrokinetic Inverter | x2 | -7/Factory | Preloaded Linear Accelerator | x2 | -5/Factory | Preloaded Repaired ---------- Nothing Studied --------- Deuterium Engine | -7/Factory | Hacked Gravmag System | -6/Factory | Hacked Imp. Grenade Launcher | -5/Factory | Hacked Imp. Gyrokinetic Inverter | -5/Factory | Hacked Alien Tech Used ----------------- None Achievements -------------- None Challenges ------------ None Game ------ Seed GreatSubdwellerPower Manual? 0 Play Time 02:10:40 Cumulative 89.0 hours Start 2026.08.20 @ 12:38:41 End 2026.08.20 @ 18:09:46 Sessions 1 Manual Loads 0 Difficulty Rogue Special Mode None Game No. 81 Rogue 79 Adventurer 2 Explorer 0 Win Type - Total 0 Types 0/0/0/0/0/0/0/0/0/0 Lore% 43 Gallery% 37 Achievement% 29 Wizard Run 0 Options --------- Layout 0 ASCII 0 Keyboard 0 Movement Mouse Keybinds 0 Fullscreen 2 Font 24/Smallcaps Map View 76x50 Zoom Use 0% Tactical HUD 1 Map Filters NONE Filters NONE Steam 1 RUN: 2ec0365b-b657-46e4-984a-d9884f84e43c